[Event "Titled Tuesday Blitz January 18 2022"]
[White "Seo, Jung Min"]
[Black "Karas, Marek"]
[WhiteFideId "1734687"]
[BlackFideId "14928558"]
[WhiteElo "2401"]
[BlackElo "2270"]
[Result "1-0"]
[Round "08"]
[TimeControl "180+1"]
[Date "2022.01.18"]
[WhiteClock "0:00:29"]
[BlackClock "0:00:01"]

1. c4 {[%clk 0:03:00]}  e5 {[%clk 0:02:59]} 2. Nc3 {[%clk 0:03:00]}  Nf6 {[%clk 0:02:56]} 3. Nf3 {[%clk 0:03:01]}  e4 {[%clk 0:02:50]} 4. Ng5 {[%clk 0:03:01]}  b5 {[%clk 0:02:50]} 5. Ngxe4 {[%clk 0:02:57]}  Nxe4 {[%clk 0:02:43]} 6. Nxe4 {[%clk 0:02:54]}  bxc4 {[%clk 0:02:43]} 7. e3 {[%clk 0:02:54]}  d5 {[%clk 0:02:42]} 8. Nc3 {[%clk 0:02:54]}  c6 {[%clk 0:02:41]} 9. b3 {[%clk 0:02:53]}  cxb3 {[%clk 0:02:23]} 10. axb3 {[%clk 0:02:53]}  Bd6 {[%clk 0:02:18]} 11. Be2 {[%clk 0:02:47]}  O-O {[%clk 0:02:17]} 12. Ba3 {[%clk 0:02:47]}  Bxa3 {[%clk 0:02:14]} 13. Rxa3 {[%clk 0:02:46]}  Qd6 {[%clk 0:02:12]} 14. Ra1 {[%clk 0:02:45]}  Bf5 {[%clk 0:02:08]} 15. O-O {[%clk 0:02:42]}  Nd7 {[%clk 0:01:26]} 16. d4 {[%clk 0:02:42]}  h6 {[%clk 0:01:21]} 17. Na4 {[%clk 0:02:41]}  Rfb8 {[%clk 0:01:20]} 18. Rc1 {[%clk 0:02:37]}  Rb4 {[%clk 0:01:12]} 19. Bd3 {[%clk 0:02:33]}  Bxd3 {[%clk 0:01:11]} 20. Qxd3 {[%clk 0:02:32]}  Rab8 {[%clk 0:01:10]} 21. Rc3 {[%clk 0:02:32]}  a5 {[%clk 0:01:06]} 22. Rfc1 {[%clk 0:02:31]}  Qe7 {[%clk 0:00:52]} 23. h3 {[%clk 0:02:24]}  g6 {[%clk 0:00:40]} 24. Qa6 {[%clk 0:02:09]}  Rxb3 {[%clk 0:00:34]} 25. Qxa5 {[%clk 0:02:03]}  Rxc3 {[%clk 0:00:31]} 26. Qxc3 {[%clk 0:02:01]}  Rc8 {[%clk 0:00:30]} 27. Rb1 {[%clk 0:01:57]}  Qd6 {[%clk 0:00:23]} 28. Rc1 {[%clk 0:01:51]}  Rc7 {[%clk 0:00:20]} 29. Qc2 {[%clk 0:01:49]}  Kg7 {[%clk 0:00:20]} 30. g4 {[%clk 0:01:43]}  Nf6 {[%clk 0:00:18]} 31. Nc5 {[%clk 0:01:42]}  Nd7 {[%clk 0:00:15]} 32. Nxd7 {[%clk 0:01:35]}  Qxd7 {[%clk 0:00:14]} 33. Kg2 {[%clk 0:01:35]}  Qe6 {[%clk 0:00:14]} 34. Qe2 {[%clk 0:01:33]}  Qd6 {[%clk 0:00:12]} 35. Qf3 {[%clk 0:01:32]}  c5 {[%clk 0:00:10]} 36. dxc5 {[%clk 0:01:32]}  Rxc5 {[%clk 0:00:11]} 37. Rd1 {[%clk 0:01:32]}  Qe5 {[%clk 0:00:08]} 38. Rd4 {[%clk 0:01:30]}  Qe6 {[%clk 0:00:07]} 39. h4 {[%clk 0:01:28]}  Qe5 {[%clk 0:00:07]} 40. h5 {[%clk 0:01:22]}  g5 {[%clk 0:00:06]} 41. Qd1 {[%clk 0:01:19]}  Qe6 {[%clk 0:00:04]} 42. Qf3 {[%clk 0:01:15]}  Qf6 {[%clk 0:00:04]} 43. Qxf6+ {[%clk 0:01:02]}  Kxf6 {[%clk 0:00:05]} 44. Ra4 {[%clk 0:01:02]}  Rc6 {[%clk 0:00:05]} 45. Kf3 {[%clk 0:00:58]}  Ke5 {[%clk 0:00:02]} 46. Ra7 {[%clk 0:00:58]}  Rf6+ {[%clk 0:00:01]} 47. Ke2 {[%clk 0:00:57]}  Ke6 {[%clk 0:00:01]} 48. Ra6+ {[%clk 0:00:53]}  Ke5 {[%clk 0:00:02]} 49. f4+ {[%clk 0:00:32]}  gxf4 {[%clk 0:00:01]} 50. Rxf6 {[%clk 0:00:31]}  Kxf6 {[%clk 0:00:01]} 51. exf4 {[%clk 0:00:32]}  Ke6 {[%clk 0:00:01]} 52. Ke3 {[%clk 0:00:32]}  f6 {[%clk 0:00:01]} 53. Kd4 {[%clk 0:00:31]}  Kd6 {[%clk 0:00:01]} 54. g5 {[%clk 0:00:28]}  fxg5 {[%clk 0:00:01]} 55. fxg5 {[%clk 0:00:28]}  hxg5 {[%clk 0:00:01]} 56. h6 {[%clk 0:00:28]}  Ke6 {[%clk 0:00:01]} 57. h7 {[%clk 0:00:29]} 1-0


[Site "https://www.chess.com"]

[Event "Titled Tuesday Blitz January 18 2022"]
[White "Shkapenko, Pavel"]
[Black "Khumalo, Keith"]
[WhiteFideId "4151933"]
[BlackFideId "14319470"]
[WhiteElo "2386"]
[BlackElo "1992"]
[Result "1-0"]
[Round "08"]
[TimeControl "180+1"]
[Date "2022.01.18"]
[WhiteClock "0:00:06"]
[BlackClock "0:01:00"]

1. e4 {[%clk 0:02:58]}  c5 {[%clk 0:02:59]} 2. c3 {[%clk 0:02:57]}  d5 {[%clk 0:02:59]} 3. exd5 {[%clk 0:02:58]}  Qxd5 {[%clk 0:02:59]} 4. d4 {[%clk 0:02:58]}  Nc6 {[%clk 0:03:00]} 5. Nf3 {[%clk 0:02:57]}  Nf6 {[%clk 0:03:01]} 6. Be2 {[%clk 0:02:55]}  Bg4 {[%clk 0:03:01]} 7. h3 {[%clk 0:02:32]}  Bh5 {[%clk 0:02:50]} 8. c4 {[%clk 0:02:28]}  Qd6 {[%clk 0:02:45]} 9. d5 {[%clk 0:02:24]}  Bxf3 {[%clk 0:02:45]} 10. Bxf3 {[%clk 0:02:24]}  Nd4 {[%clk 0:02:44]} 11. O-O {[%clk 0:02:14]}  g6 {[%clk 0:02:45]} 12. Be3 {[%clk 0:02:09]}  Nxf3+ {[%clk 0:02:42]} 13. Qxf3 {[%clk 0:02:09]}  Bg7 {[%clk 0:02:43]} 14. Nc3 {[%clk 0:02:04]}  O-O {[%clk 0:02:41]} 15. Nb5 {[%clk 0:01:59]}  Qd7 {[%clk 0:02:29]} 16. Bxc5 {[%clk 0:01:58]}  Rfc8 {[%clk 0:02:30]} 17. Bxa7 {[%clk 0:01:26]}  Rxc4 {[%clk 0:02:28]} 18. Qb3 {[%clk 0:01:25]}  Qxd5 {[%clk 0:02:17]} 19. Rfd1 {[%clk 0:01:24]}  Qe4 {[%clk 0:02:14]} 20. Bd4 {[%clk 0:01:21]}  Rac8 {[%clk 0:02:06]} 21. Re1 {[%clk 0:01:00]}  Qd5 {[%clk 0:02:01]} 22. Rad1 {[%clk 0:00:46]}  Qg5 {[%clk 0:01:36]} 23. Rxe7 {[%clk 0:00:23]}  Nh5 {[%clk 0:01:36]} 24. Re3 {[%clk 0:00:19]}  Nf4 {[%clk 0:01:35]} 25. Rg3 {[%clk 0:00:18]}  Ne2+ {[%clk 0:01:35]} 26. Kh2 {[%clk 0:00:18]}  Nxg3 {[%clk 0:01:35]} 27. fxg3 {[%clk 0:00:18]}  Bxd4 {[%clk 0:01:27]} 28. Rxd4 {[%clk 0:00:18]}  Rxd4 {[%clk 0:01:25]} 29. Nxd4 {[%clk 0:00:18]}  Qe5 {[%clk 0:01:21]} 30. Qxb7 {[%clk 0:00:17]}  Rd8 {[%clk 0:01:20]} 31. Nc6 {[%clk 0:00:16]}  Qd6 {[%clk 0:01:10]} 32. Nxd8 {[%clk 0:00:16]}  Qxd8 {[%clk 0:01:11]} 33. a4 {[%clk 0:00:16]}  Qd2 {[%clk 0:01:10]} 34. b4 {[%clk 0:00:14]}  h5 {[%clk 0:01:07]} 35. Qb8+ {[%clk 0:00:14]}  Kg7 {[%clk 0:01:07]} 36. a5 {[%clk 0:00:15]}  Qd3 {[%clk 0:01:02]} 37. b5 {[%clk 0:00:13]}  h4 {[%clk 0:01:02]} 38. gxh4 {[%clk 0:00:11]}  Qe4 {[%clk 0:01:03]} 39. a6 {[%clk 0:00:10]}  f5 {[%clk 0:01:01]} 40. Qc7+ {[%clk 0:00:07]}  Kh6 {[%clk 0:01:01]} 41. a7 {[%clk 0:00:07]}  f4 {[%clk 0:01:01]} 42. Qc3 {[%clk 0:00:06]}  Qb7 {[%clk 0:00:59]} 43. Qh8+ {[%clk 0:00:06]}  Qh7 {[%clk 0:00:59]} 44. Qxh7+ {[%clk 0:00:06]}  Kxh7 {[%clk 0:01:00]} 45. a8=Q {[%clk 0:00:06]} 1-0


[Site "https://www.chess.com"]

[Event "Titled Tuesday Blitz January 18 2022"]
[White "Sokolovsky, Yahli"]
[Black "Pakleza, Zbigniew"]
[WhiteFideId "2820242"]
[BlackFideId "1119290"]
[WhiteElo "1770"]
[BlackElo "2467"]
[Result "0-1"]
[Round "08"]
[TimeControl "180+1"]
[Date "2022.01.18"]
[WhiteClock "0:00:03"]
[BlackClock "0:00:42"]

1. b3 {[%clk 0:03:00]}  d5 {[%clk 0:02:59]} 2. Bb2 {[%clk 0:03:00]}  Nf6 {[%clk 0:03:00]} 3. e3 {[%clk 0:03:01]}  Bf5 {[%clk 0:03:00]} 4. d4 {[%clk 0:02:53]}  e6 {[%clk 0:03:00]} 5. Nf3 {[%clk 0:02:53]}  Nbd7 {[%clk 0:02:59]} 6. h3 {[%clk 0:02:49]}  c6 {[%clk 0:02:57]} 7. Be2 {[%clk 0:02:49]}  h6 {[%clk 0:02:56]} 8. O-O {[%clk 0:02:49]}  Be7 {[%clk 0:02:54]} 9. Nbd2 {[%clk 0:02:47]}  O-O {[%clk 0:02:54]} 10. Ne5 {[%clk 0:02:47]}  Nxe5 {[%clk 0:02:51]} 11. dxe5 {[%clk 0:02:48]}  Nd7 {[%clk 0:02:52]} 12. c4 {[%clk 0:02:17]}  Nc5 {[%clk 0:02:45]} 13. cxd5 {[%clk 0:02:09]}  cxd5 {[%clk 0:02:43]} 14. Nf3 {[%clk 0:02:08]}  Qb6 {[%clk 0:02:34]} 15. Nd4 {[%clk 0:02:06]}  Bg6 {[%clk 0:02:34]} 16. Kh2 {[%clk 0:01:36]}  Rfc8 {[%clk 0:02:15]} 17. f4 {[%clk 0:01:19]}  Ne4 {[%clk 0:02:10]} 18. Bd3 {[%clk 0:01:12]}  a5 {[%clk 0:01:34]} 19. g4 {[%clk 0:00:47]}  Bh7 {[%clk 0:01:31]} 20. f5 {[%clk 0:00:39]}  Bg5 {[%clk 0:01:31]} 21. Qe2 {[%clk 0:00:26]}  a4 {[%clk 0:01:12]} 22. Bxe4 {[%clk 0:00:22]}  dxe4 {[%clk 0:01:13]} 23. fxe6 {[%clk 0:00:22]}  fxe6 {[%clk 0:01:14]} 24. Rac1 {[%clk 0:00:19]}  axb3 {[%clk 0:01:10]} 25. axb3 {[%clk 0:00:19]}  Kh8 {[%clk 0:01:00]} 26. Qf2 {[%clk 0:00:12]}  Bg8 {[%clk 0:00:56]} 27. Qg2 {[%clk 0:00:07]}  Bxe3 {[%clk 0:00:51]} 28. Rcd1 {[%clk 0:00:03]}  Ra2 {[%clk 0:00:42]} 0-1


[Site "https://www.chess.com"]

[Event "Titled Tuesday Blitz January 18 2022"]
[White "Sviridov, Valery"]
[Black "Fawzy, Adham"]
[WhiteFideId "4120680"]
[BlackFideId "10613129"]
[WhiteElo "2454"]
[BlackElo "2510"]
[Result "1-0"]
[Round "08"]
[TimeControl "180+1"]
[Date "2022.01.18"]
[WhiteClock "0:00:30"]
[BlackClock "0:00:01"]

1. Nf3 {[%clk 0:03:00]}  c5 {[%clk 0:02:59]} 2. c4 {[%clk 0:02:58]}  Nc6 {[%clk 0:02:59]} 3. g3 {[%clk 0:02:57]}  g6 {[%clk 0:03:00]} 4. Bg2 {[%clk 0:02:57]}  Bg7 {[%clk 0:03:00]} 5. Nc3 {[%clk 0:02:57]}  e5 {[%clk 0:03:01]} 6. O-O {[%clk 0:02:57]}  Nge7 {[%clk 0:03:01]} 7. Ne1 {[%clk 0:02:57]}  O-O {[%clk 0:03:02]} 8. Nc2 {[%clk 0:02:58]}  d6 {[%clk 0:03:02]} 9. Rb1 {[%clk 0:02:58]}  Be6 {[%clk 0:03:03]} 10. Ne3 {[%clk 0:02:58]}  Qd7 {[%clk 0:03:02]} 11. a3 {[%clk 0:02:58]}  Bh3 {[%clk 0:03:01]} 12. b4 {[%clk 0:02:58]}  Bxg2 {[%clk 0:03:01]} 13. Kxg2 {[%clk 0:02:59]}  b6 {[%clk 0:03:02]} 14. d3 {[%clk 0:02:59]}  f5 {[%clk 0:02:58]} 15. Bd2 {[%clk 0:02:58]}  f4 {[%clk 0:02:57]} 16. Ned5 {[%clk 0:02:56]}  Nd4 {[%clk 0:02:28]} 17. Nxe7+ {[%clk 0:02:52]}  Qxe7 {[%clk 0:02:29]} 18. Nd5 {[%clk 0:02:52]}  Qb7 {[%clk 0:02:27]} 19. f3 {[%clk 0:02:52]}  g5 {[%clk 0:02:22]} 20. Bc3 {[%clk 0:02:50]}  Nc6 {[%clk 0:02:21]} 21. g4 {[%clk 0:02:47]}  Ne7 {[%clk 0:02:21]} 22. Nxe7+ {[%clk 0:02:40]}  Qxe7 {[%clk 0:02:22]} 23. bxc5 {[%clk 0:02:36]}  dxc5 {[%clk 0:02:15]} 24. a4 {[%clk 0:02:36]}  e4 {[%clk 0:02:05]} 25. Bxg7 {[%clk 0:02:30]}  exf3+ {[%clk 0:02:06]} 26. exf3 {[%clk 0:02:30]}  Qxg7 {[%clk 0:02:01]} 27. a5 {[%clk 0:02:31]}  bxa5 {[%clk 0:01:58]} 28. Rb5 {[%clk 0:02:22]}  Qd4 {[%clk 0:01:57]} 29. Qa1 {[%clk 0:02:19]}  Qxd3 {[%clk 0:01:39]} 30. Rxc5 {[%clk 0:02:17]}  h6 {[%clk 0:01:40]} 31. Rc6 {[%clk 0:02:14]}  Qh7 {[%clk 0:01:11]} 32. Qxa5 {[%clk 0:01:59]}  Rac8 {[%clk 0:01:10]} 33. Ra6 {[%clk 0:01:54]}  Rf7 {[%clk 0:01:01]} 34. Qd5 {[%clk 0:01:53]}  Qc2+ {[%clk 0:00:57]} 35. Rf2 {[%clk 0:01:52]}  Qxc4 {[%clk 0:00:57]} 36. Qd6 {[%clk 0:01:53]}  Rh7 {[%clk 0:00:43]} 37. Qg6+ {[%clk 0:01:53]}  Kh8 {[%clk 0:00:43]} 38. Re6 {[%clk 0:01:38]}  a5 {[%clk 0:00:15]} 39. Rfe2 {[%clk 0:01:38]}  Rg7 {[%clk 0:00:13]} 40. Qxh6+ {[%clk 0:01:38]}  Kg8 {[%clk 0:00:13]} 41. Qh5 {[%clk 0:01:17]}  Rf8 {[%clk 0:00:13]} 42. Re7 {[%clk 0:01:15]}  Qc3 {[%clk 0:00:11]} 43. Re8 {[%clk 0:01:11]}  Qc6 {[%clk 0:00:05]} 44. R8e5 {[%clk 0:00:50]}  Qg6 {[%clk 0:00:05]} 45. Qxg6 {[%clk 0:00:50]}  Rxg6 {[%clk 0:00:06]} 46. Rxa5 {[%clk 0:00:50]}  Rf7 {[%clk 0:00:06]} 47. Re8+ {[%clk 0:00:49]}  Kh7 {[%clk 0:00:07]} 48. Ree5 {[%clk 0:00:49]}  Kh6 {[%clk 0:00:07]} 49. h4 {[%clk 0:00:45]}  gxh4 {[%clk 0:00:08]} 50. Rh5+ {[%clk 0:00:46]}  Kg7 {[%clk 0:00:08]} 51. Raf5 {[%clk 0:00:44]}  Rd7 {[%clk 0:00:04]} 52. Rxf4 {[%clk 0:00:41]}  Rd2+ {[%clk 0:00:02]} 53. Kh3 {[%clk 0:00:42]}  Rd1 {[%clk 0:00:02]} 54. Rxh4 {[%clk 0:00:41]}  Rh1+ {[%clk 0:00:01]} 55. Kg3 {[%clk 0:00:41]}  Rg1+ {[%clk 0:00:02]} 56. Kf2 {[%clk 0:00:40]}  Ra1 {[%clk 0:00:03]} 57. Rh5 {[%clk 0:00:40]}  Rc6 {[%clk 0:00:03]} 58. Rg5+ {[%clk 0:00:40]}  Kh6 {[%clk 0:00:03]} 59. Re5 {[%clk 0:00:32]}  Rc2+ {[%clk 0:00:02]} 60. Re2 {[%clk 0:00:31]}  Rcc1 {[%clk 0:00:02]} 61. Rf5 {[%clk 0:00:32]}  Kg6 {[%clk 0:00:01]} 62. Re6+ {[%clk 0:00:31]}  Kg7 {[%clk 0:00:01]} 63. Kg3 {[%clk 0:00:30]} 1-0


[Site "https://www.chess.com"]

[Event "Titled Tuesday Blitz January 18 2022"]
[White "Tsyhanchuk, Stanislav"]
[Black "Klimciauskas, Domantas"]
[WhiteFideId "13505130"]
[BlackFideId "12802999"]
[WhiteElo "2078"]
[BlackElo "2255"]
[Result "1-0"]
[Round "08"]
[TimeControl "180+1"]
[Date "2022.01.18"]
[WhiteClock "0:00:09"]
[BlackClock "0:00:01"]

1. e4 {[%clk 0:03:00]}  g6 {[%clk 0:02:59]} 2. d4 {[%clk 0:03:00]}  Bg7 {[%clk 0:02:59]} 3. Nc3 {[%clk 0:03:00]}  d5 {[%clk 0:02:59]} 4. exd5 {[%clk 0:02:59]}  Nf6 {[%clk 0:02:59]} 5. Bc4 {[%clk 0:02:56]}  Nbd7 {[%clk 0:02:59]} 6. Bb3 {[%clk 0:02:55]}  Nb6 {[%clk 0:02:58]} 7. Qf3 {[%clk 0:02:54]}  Bg4 {[%clk 0:02:58]} 8. Qg3 {[%clk 0:02:51]}  Bf5 {[%clk 0:02:58]} 9. Qf3 {[%clk 0:02:49]}  Bg4 {[%clk 0:02:58]} 10. Qd3 {[%clk 0:02:36]}  Bf5 {[%clk 0:02:56]} 11. Qb5+ {[%clk 0:02:33]}  Bd7 {[%clk 0:02:49]} 12. Qe2 {[%clk 0:02:32]}  Bf5 {[%clk 0:02:38]} 13. h3 {[%clk 0:02:14]}  Nfxd5 {[%clk 0:02:35]} 14. Nxd5 {[%clk 0:02:13]}  Nxd5 {[%clk 0:02:33]} 15. Qb5+ {[%clk 0:02:11]}  c6 {[%clk 0:02:31]} 16. Qxb7 {[%clk 0:02:10]}  O-O {[%clk 0:02:25]} 17. Nf3 {[%clk 0:01:55]}  Be4 {[%clk 0:02:15]} 18. Qxc6 {[%clk 0:00:51]}  Rc8 {[%clk 0:01:33]} 19. Qa4 {[%clk 0:00:46]}  Qb6 {[%clk 0:01:17]} 20. c3 {[%clk 0:00:43]}  Bxf3 {[%clk 0:01:07]} 21. gxf3 {[%clk 0:00:42]}  Rfd8 {[%clk 0:01:00]} 22. Bd2 {[%clk 0:00:33]}  Qe6+ {[%clk 0:00:59]} 23. Kf1 {[%clk 0:00:32]}  Qf5 {[%clk 0:00:32]} 24. Kg2 {[%clk 0:00:31]}  a5 {[%clk 0:00:30]} 25. Rae1 {[%clk 0:00:30]}  Nf4+ {[%clk 0:00:20]} 26. Bxf4 {[%clk 0:00:29]}  Qxf4 {[%clk 0:00:20]} 27. Qxa5 {[%clk 0:00:25]}  e5 {[%clk 0:00:21]} 28. dxe5 {[%clk 0:00:12]}  Qg5+ {[%clk 0:00:18]} 29. Kf1 {[%clk 0:00:12]}  Rd2 {[%clk 0:00:17]} 30. Qa7 {[%clk 0:00:12]}  Rf8 {[%clk 0:00:15]} 31. e6 {[%clk 0:00:11]}  Qh4 {[%clk 0:00:13]} 32. exf7+ {[%clk 0:00:10]}  Kh8 {[%clk 0:00:13]} 33. Re8 {[%clk 0:00:10]}  Rd8 {[%clk 0:00:05]} 34. Qe3 {[%clk 0:00:08]}  Qf6 {[%clk 0:00:02]} 35. Rxd8 {[%clk 0:00:08]}  Qxd8 {[%clk 0:00:01]} 36. Kg2 {[%clk 0:00:08]}  Qh4 {[%clk 0:00:01]} 37. Rd1 {[%clk 0:00:08]}  Bh6 {[%clk 0:00:02]} 38. Qe4 {[%clk 0:00:08]}  Qg5+ {[%clk 0:00:02]} 39. Qg4 {[%clk 0:00:08]}  Qf6 {[%clk 0:00:03]} 40. Rd4 {[%clk 0:00:07]}  Bg7 {[%clk 0:00:03]} 41. Re4 {[%clk 0:00:07]}  Qb6 {[%clk 0:00:02]} 42. Re8 {[%clk 0:00:07]}  Qd6 {[%clk 0:00:02]} 43. Rxf8+ {[%clk 0:00:07]}  Qxf8 {[%clk 0:00:02]} 44. Qe6 {[%clk 0:00:08]}  Qd8 {[%clk 0:00:01]} 45. Qe8+ {[%clk 0:00:08]}  Qxe8 {[%clk 0:00:01]} 46. fxe8=Q+ {[%clk 0:00:09]} 1-0


[Site "https://www.chess.com"]

[Event "Titled Tuesday Blitz January 18 2022"]
[White "Vlassov, Nikolai"]
[Black "Prydun, Andriy"]
[WhiteFideId "4103360"]
[BlackFideId "14145898"]
[WhiteElo "2407"]
[BlackElo "2047"]
[Result "1-0"]
[Round "08"]
[TimeControl "180+1"]
[Date "2022.01.18"]
[WhiteClock "0:00:11"]
[BlackClock "0:00:01"]

1. e4 {[%clk 0:03:00]}  Nh6 {[%clk 0:02:57]} 2. d4 {[%clk 0:02:56]}  c6 {[%clk 0:02:56]} 3. Bxh6 {[%clk 0:02:52]}  gxh6 {[%clk 0:02:55]} 4. Bc4 {[%clk 0:02:49]}  Na6 {[%clk 0:02:54]} 5. Qh5 {[%clk 0:02:44]}  e6 {[%clk 0:02:53]} 6. Nc3 {[%clk 0:02:43]}  Qg5 {[%clk 0:02:50]} 7. Qf3 {[%clk 0:02:27]}  Nc7 {[%clk 0:02:47]} 8. e5 {[%clk 0:02:19]}  Bb4 {[%clk 0:02:46]} 9. Ne2 {[%clk 0:02:18]}  b5 {[%clk 0:02:44]} 10. Bd3 {[%clk 0:02:14]}  Nd5 {[%clk 0:02:44]} 11. O-O {[%clk 0:02:11]}  f5 {[%clk 0:01:54]} 12. exf6 {[%clk 0:02:02]}  Nxf6 {[%clk 0:01:51]} 13. a4 {[%clk 0:01:56]}  Bb7 {[%clk 0:01:37]} 14. axb5 {[%clk 0:01:53]}  O-O-O {[%clk 0:01:37]} 15. Rxa7 {[%clk 0:01:48]}  Rhg8 {[%clk 0:01:34]} 16. Rfa1 {[%clk 0:01:40]}  Rdf8 {[%clk 0:01:31]} 17. Rxb7 {[%clk 0:01:22]}  Kxb7 {[%clk 0:01:30]} 18. bxc6+ {[%clk 0:01:22]}  dxc6 {[%clk 0:01:30]} 19. Ne4 {[%clk 0:00:43]}  Qh4 {[%clk 0:01:14]} 20. g3 {[%clk 0:00:22]}  Nd7 {[%clk 0:00:56]} 21. Qg2 {[%clk 0:00:20]}  Qg4 {[%clk 0:00:49]} 22. c3 {[%clk 0:00:19]}  Be7 {[%clk 0:00:48]} 23. h3 {[%clk 0:00:18]}  Qf3 {[%clk 0:00:48]} 24. Qxf3 {[%clk 0:00:14]}  Rxf3 {[%clk 0:00:49]} 25. Bc4 {[%clk 0:00:15]}  Rg6 {[%clk 0:00:43]} 26. Kg2 {[%clk 0:00:15]}  Rf5 {[%clk 0:00:41]} 27. g4 {[%clk 0:00:14]}  e5 {[%clk 0:00:14]} 28. N4g3 {[%clk 0:00:13]}  Rf8 {[%clk 0:00:13]} 29. Bd3 {[%clk 0:00:13]}  Rg7 {[%clk 0:00:08]} 30. Nf5 {[%clk 0:00:13]}  Rgf7 {[%clk 0:00:06]} 31. Neg3 {[%clk 0:00:13]}  exd4 {[%clk 0:00:06]} 32. cxd4 {[%clk 0:00:13]}  Bf6 {[%clk 0:00:05]} 33. b4 {[%clk 0:00:13]}  Bh8 {[%clk 0:00:03]} 34. f3 {[%clk 0:00:11]}  Nb6 {[%clk 0:00:03]} 35. Be4 {[%clk 0:00:11]}  Nd5 {[%clk 0:00:03]} 36. b5 {[%clk 0:00:12]}  Rc7 {[%clk 0:00:02]} 37. bxc6+ {[%clk 0:00:12]}  Kxc6 {[%clk 0:00:01]} 38. Ra6+ {[%clk 0:00:11]}  Kb5 {[%clk 0:00:01]} 39. Rxh6 {[%clk 0:00:10]}  Nc3 {[%clk 0:00:01]} 40. d5 {[%clk 0:00:10]}  Kb4 {[%clk 0:00:01]} 41. d6 {[%clk 0:00:10]}  Rd7 {[%clk 0:00:01]} 42. Bc6 {[%clk 0:00:11]}  Rdd8 {[%clk 0:00:01]} 43. d7 {[%clk 0:00:11]}  Nd1 {[%clk 0:00:01]} 44. Ne4 {[%clk 0:00:11]} 1-0


[Site "https://www.chess.com"]

[Event "Titled Tuesday Blitz January 18 2022"]
[White "Vovk, Orest"]
[Black "Chigaev, Maksim"]
[WhiteFideId "14113490"]
[BlackFideId "4108116"]
[WhiteElo "2203"]
[BlackElo "2502"]
[Result "0-1"]
[Round "08"]
[TimeControl "180+1"]
[Date "2022.01.18"]
[WhiteClock "0:00:01"]
[BlackClock "0:00:39"]

1. h4 {[%clk 0:03:00]}  d5 {[%clk 0:02:58]} 2. h5 {[%clk 0:03:01]}  h6 {[%clk 0:02:58]} 3. e4 {[%clk 0:03:00]}  dxe4 {[%clk 0:02:54]} 4. Nc3 {[%clk 0:03:01]}  Nf6 {[%clk 0:02:54]} 5. Qe2 {[%clk 0:03:00]}  Bf5 {[%clk 0:02:51]} 6. Qb5+ {[%clk 0:03:00]}  Bd7 {[%clk 0:02:44]} 7. Qxb7 {[%clk 0:03:00]}  Nc6 {[%clk 0:02:42]} 8. Bb5 {[%clk 0:03:00]}  Rb8 {[%clk 0:02:32]} 9. Qxc6 {[%clk 0:03:00]}  Bxc6 {[%clk 0:02:32]} 10. Bxc6+ {[%clk 0:03:01]}  Nd7 {[%clk 0:02:32]} 11. Nxe4 {[%clk 0:03:02]}  Rb6 {[%clk 0:02:29]} 12. Ba4 {[%clk 0:03:01]}  Re6 {[%clk 0:02:02]} 13. d3 {[%clk 0:02:59]}  f5 {[%clk 0:01:59]} 14. Bb3 {[%clk 0:02:58]}  Nc5 {[%clk 0:01:54]} 15. Bxe6 {[%clk 0:02:55]}  Nxe6 {[%clk 0:01:55]} 16. Nc3 {[%clk 0:02:44]}  Nd4 {[%clk 0:01:54]} 17. Kd1 {[%clk 0:02:40]}  e5 {[%clk 0:01:53]} 18. Nf3 {[%clk 0:02:29]}  Nxf3 {[%clk 0:01:52]} 19. gxf3 {[%clk 0:02:30]}  Bb4 {[%clk 0:01:52]} 20. Bd2 {[%clk 0:02:14]}  O-O {[%clk 0:01:51]} 21. Ke2 {[%clk 0:02:02]}  Kh7 {[%clk 0:01:33]} 22. Rag1 {[%clk 0:01:59]}  Be7 {[%clk 0:01:29]} 23. Rg6 {[%clk 0:01:44]}  Rf6 {[%clk 0:01:29]} 24. Rxf6 {[%clk 0:01:28]}  Bxf6 {[%clk 0:01:28]} 25. Rg1 {[%clk 0:01:28]}  Qd4 {[%clk 0:01:20]} 26. Rg6 {[%clk 0:01:19]}  c6 {[%clk 0:01:14]} 27. f4 {[%clk 0:01:09]}  exf4 {[%clk 0:01:10]} 28. Kf3 {[%clk 0:01:09]}  Qb6 {[%clk 0:00:55]} 29. Ne2 {[%clk 0:00:54]}  Qxb2 {[%clk 0:00:53]} 30. Nxf4 {[%clk 0:00:35]}  Qxc2 {[%clk 0:00:53]} 31. Be3 {[%clk 0:00:35]}  Qxa2 {[%clk 0:00:50]} 32. d4 {[%clk 0:00:28]}  a5 {[%clk 0:00:48]} 33. Ne2 {[%clk 0:00:10]}  Qd5+ {[%clk 0:00:46]} 34. Kg3 {[%clk 0:00:09]}  a4 {[%clk 0:00:45]} 35. Bxh6 {[%clk 0:00:07]}  a3 {[%clk 0:00:42]} 36. Nf4 {[%clk 0:00:01]}  Qb3+ {[%clk 0:00:41]} 37. Kg2 {[%clk 0:00:01]}  a2 {[%clk 0:00:41]} 38. Bxg7 {[%clk 0:00:01]}  Bxg7 {[%clk 0:00:40]} 39. Rxc6 {[%clk 0:00:01]}  a1=Q {[%clk 0:00:39]} 0-1


[Site "https://www.chess.com"]

[Event "Titled Tuesday Blitz January 18 2022"]
[White "Wong, Yinn Long"]
[Black "Kim, Sergey"]
[WhiteFideId "5707684"]
[BlackFideId "13700570"]
[WhiteElo "2055"]
[BlackElo "2587"]
[Result "1-0"]
[Round "08"]
[TimeControl "180+1"]
[Date "2022.01.18"]
[WhiteClock "0:00:14"]
[BlackClock "0:00:18"]

1. d4 {[%clk 0:03:00]}  Nf6 {[%clk 0:02:59]} 2. Bf4 {[%clk 0:03:01]}  g6 {[%clk 0:02:59]} 3. Nc3 {[%clk 0:03:01]}  d6 {[%clk 0:02:58]} 4. e4 {[%clk 0:03:01]}  c6 {[%clk 0:02:58]} 5. Bd3 {[%clk 0:02:54]}  Qc7 {[%clk 0:02:54]} 6. Nf3 {[%clk 0:02:53]}  Nbd7 {[%clk 0:02:53]} 7. O-O {[%clk 0:02:35]}  e5 {[%clk 0:02:51]} 8. Bg5 {[%clk 0:02:26]}  Bg7 {[%clk 0:02:50]} 9. Qd2 {[%clk 0:02:21]}  O-O {[%clk 0:02:49]} 10. Rad1 {[%clk 0:02:18]}  Re8 {[%clk 0:02:48]} 11. Rfe1 {[%clk 0:02:19]}  a5 {[%clk 0:02:36]} 12. a4 {[%clk 0:02:17]}  Nf8 {[%clk 0:02:34]} 13. h3 {[%clk 0:02:00]}  Ne6 {[%clk 0:02:33]} 14. Be3 {[%clk 0:02:01]}  Nh5 {[%clk 0:02:28]} 15. Bf1 {[%clk 0:01:57]}  Nef4 {[%clk 0:02:23]} 16. g4 {[%clk 0:01:49]}  Nf6 {[%clk 0:02:22]} 17. Bxf4 {[%clk 0:01:49]}  exf4 {[%clk 0:02:22]} 18. Qxf4 {[%clk 0:01:50]}  Nd7 {[%clk 0:02:15]} 19. Bg2 {[%clk 0:01:35]}  Nf8 {[%clk 0:02:11]} 20. e5 {[%clk 0:01:23]}  dxe5 {[%clk 0:02:07]} 21. Nxe5 {[%clk 0:01:23]}  Ne6 {[%clk 0:02:06]} 22. Qg3 {[%clk 0:01:10]}  Nxd4 {[%clk 0:02:02]} 23. Rxd4 {[%clk 0:00:49]}  Rxe5 {[%clk 0:02:01]} 24. Red1 {[%clk 0:00:32]}  Be6 {[%clk 0:01:51]} 25. f4 {[%clk 0:00:32]}  Rc5 {[%clk 0:01:46]} 26. Re4 {[%clk 0:00:33]}  Rd8 {[%clk 0:01:27]} 27. Rd3 {[%clk 0:00:28]}  Rxd3 {[%clk 0:01:13]} 28. Qxd3 {[%clk 0:00:29]}  Bxc3 {[%clk 0:01:06]} 29. bxc3 {[%clk 0:00:29]}  Rd5 {[%clk 0:01:06]} 30. Rd4 {[%clk 0:00:26]}  Rxd4 {[%clk 0:01:02]} 31. Qxd4 {[%clk 0:00:26]}  Qe7 {[%clk 0:00:59]} 32. Qe5 {[%clk 0:00:23]}  Qa3 {[%clk 0:00:55]} 33. Qb8+ {[%clk 0:00:19]}  Kg7 {[%clk 0:00:54]} 34. Qe5+ {[%clk 0:00:19]}  Kg8 {[%clk 0:00:54]} 35. f5 {[%clk 0:00:20]}  Qc1+ {[%clk 0:00:41]} 36. Kh2 {[%clk 0:00:19]}  gxf5 {[%clk 0:00:41]} 37. gxf5 {[%clk 0:00:19]}  Bd5 {[%clk 0:00:40]} 38. f6 {[%clk 0:00:14]}  h6 {[%clk 0:00:18]} 39. Bxd5 {[%clk 0:00:14]} 1-0


[Site "https://www.chess.com"]